bitfinex/quotes_BTCUSD_20240827
["timestamp","ask_amount","ask_price","bid_price","bid_amount"]
[1724785947363,0.02516135,62326.0,62323.0,0.12067966]
[1724785948462,0.02616135,62326.0,62323.0,0.12067966]
[1724785948673,0.02716135,62326.0,62323.0,0.12067966]
[1724785948888,0.02616135,62326.0,62323.0,0.12067966]
[1724785949348,0.02616135,62326.0,62323.0,0.006]
[1724785949795,0.02716135,62326.0,62323.0,0.014]
[1724785952245,0.02716135,62326.0,62325.0,0.09923897]
[1724785953359,0.02616135,62326.0,62325.0,0.09923897]
[1724785953571,0.02516135,62326.0,62325.0,0.09923897]
[1724785953784,0.02516135,62326.0,62325.0,0.15474318]
[1724785954902,0.02616135,62326.0,62325.0,0.16874318]
[1724785955124,0.02716135,62326.0,62325.0,0.18274318]
[1724785955342,0.07521672,62326.0,62325.0,0.18274318]
[1724785956250,0.07521672,62326.0,62325.0,1.13079899]
[1724785956467,0.02716135,62326.0,62325.0,1.44848818]
[1724785956684,0.02716135,62326.0,62325.0,1.76938618]
[1724785957207,0.02716135,62326.0,62325.0,1.86938618]
[1724785957417,0.02716135,62326.0,62325.0,1.90957984]
[1724785957634,0.02716135,62326.0,62325.0,1.91457984]
[1724785958080,0.02716135,62326.0,62325.0,1.88657984]
[1724785958081,0.02516135,62326.0,62325.0,1.88657984]
[1724785958271,0.02516135,62326.0,62325.0,1.90057984]
[1724785958538,0.02698235,62326.0,62325.0,1.91457984]
[1724785959176,0.02598235,62326.0,62325.0,1.88657984]
[1724785959583,0.02598235,62326.0,62325.0,1.91457984]
[1724785959584,0.02698235,62326.0,62325.0,1.91457984]
[1724785960056,0.02698235,62326.0,62325.0,1.90057984]
[1724785960483,0.02698235,62326.0,62325.0,2.22147784]
[1724785961198,0.02698235,62326.0,62325.0,2.23547784]
[1724785961416,0.02698235,62326.0,62325.0,2.23548785]
[1724785962073,0.02698235,62326.0,62325.0,2.40498785]
[1724785962560,0.05839981,62336.0,62335.0,1.586464]
[1724785962785,0.05839981,62336.0,62335.0,1.78570297]
[1724785964320,0.08355292,62336.0,62335.0,1.78570297]
[1724785964537,0.08355292,62336.0,62335.0,1.79970297]
[1724785964771,0.08355292,62336.0,62335.0,1.81370297]
[1724785964981,0.08355292,62336.0,62335.0,1.97366842]
[1724785965617,0.08355292,62336.0,62335.0,1.55358245]
[1724785965836,0.05839981,62336.0,62335.0,1.65282142]
[1724785966047,0.05839981,62336.0,62335.0,1.55358245]
[1724785966849,0.05339981,62336.0,62335.0,1.55358245]
[1724785967294,0.05339981,62336.0,62335.0,1.23273545]
[1724785967719,0.05339981,62336.0,62335.0,1.07277]
[1724785967970,0.05339981,62336.0,62335.0,0.128]
[1724785968170,0.05339981,62336.0,62335.0,0.028]
[1724785969133,0.07855484,62336.0,62335.0,0.028]
[1724785969727,0.07855484,62336.0,62335.0,0.188423]
[1724785969964,0.07855484,62336.0,62335.0,0.75544475]
[1724785970245,0.07855484,62336.0,62335.0,0.94354475]
[1724785970489,0.07855484,62336.0,62335.0,1.19494475]
[1724785971084,0.07855484,62336.0,62335.0,1.51579175]
[1724785972494,0.07855484,62336.0,62335.0,0.75544475]
[1724785974045,0.07855484,62336.0,62335.0,0.43459775]
[1724785974258,0.07855484,62336.0,62335.0,0.75544475]
[1724785977035,0.07855484,62336.0,62335.0,1.07629175]
[1724785977237,0.05339981,62336.0,62335.0,1.07629175]
[1724785979230,0.07855411,62336.0,62335.0,1.07629175]
[1724785981844,0.07855411,62336.0,62335.0,1.51699175]
[1724785986360,0.07855411,62336.0,62335.0,1.61617641]
[1724785987935,0.07855411,62336.0,62335.0,1.29532941]
[1724785988162,0.07855411,62336.0,62335.0,1.10382941]
[1724785989684,0.07855411,62336.0,62335.0,0.22808776]
[1724785991651,0.12659769,62336.0,62335.0,0.22808776]
[1724785991887,0.51955411,62336.0,62335.0,0.0289031]
[1724785992114,0.54255411,62336.0,62335.0,0.12808776]
[1724785993296,0.07855411,62336.0,62335.0,0.60935776]
[1724785993527,0.07855411,62336.0,62335.0,0.74633009]
[1724785993963,0.07855411,62336.0,62335.0,0.42548309]
[1724785994180,0.07855411,62336.0,62335.0,0.74633009]
[1724785994628,0.07855411,62336.0,62335.0,0.16587543]
[1724785994845,0.12663472,62336.0,62335.0,0.12808776]
[1724785995081,0.07855411,62336.0,62335.0,0.12808776]
[1724785995554,0.07855411,62336.0,62335.0,0.28851076]
[1724785996629,0.15066101,62336.0,62335.0,0.28851076]
[1724785997535,0.15066101,62336.0,62335.0,0.41627417]
[1724785998210,0.15066101,62336.0,62335.0,0.28851076]
[1724785998439,0.07855411,62336.0,62335.0,0.12808776]
[1724785998627,0.07855411,62336.0,62335.0,0.28851076]
[1724785999335,0.17469664,62336.0,62335.0,0.28851076]
[1724786000472,0.19866307,62336.0,62335.0,0.28851076]
[1724786000919,0.19866307,62336.0,62335.0,0.12808776]
[1724786001162,0.46136307,62336.0,62335.0,0.0289031]
[1724786001379,0.65096307,62336.0,62335.0,0.12808776]
[1724786001605,0.26815411,62336.0,62335.0,0.12808776]
[1724786002954,0.07855411,62336.0,62335.0,0.35944934]
[1724786003199,0.07855411,62336.0,62335.0,0.63354934]
[1724786003631,0.07855411,62336.0,62335.0,0.95439634]
[1724786004316,0.07855411,62336.0,62335.0,1.27524334]
[1724786005460,0.53905411,62336.0,62335.0,0.0289031]
[1724786005675,0.53905411,62336.0,62335.0,0.12808776]
[1724786006119,0.26345411,62336.0,62335.0,0.12808776]
[1724786007683,0.07855411,62336.0,62335.0,0.12808776]
[1724786007928,0.07855411,62336.0,62335.0,0.96333844]
[1724786008111,0.07855411,62336.0,62335.0,1.60503244]
[1724786008357,0.05339981,62336.0,62335.0,1.60503244]
[1724786008574,0.12565346,62336.0,62335.0,1.60503244]
[1724786008792,0.15080803,62336.0,62335.0,1.60503244]
[1724786009472,0.15080803,62336.0,62335.0,1.28418544]
[1724786011252,0.07855438,62336.0,62335.0,1.28418544]
[1724786012799,0.07855438,62336.0,62335.0,0.96333844]
[1724786013014,0.07855438,62336.0,62335.0,0.12808776]
[1724786013257,0.19901933,62336.0,62335.0,0.28851076]
[1724786013495,0.17492909,62336.0,62335.0,0.28851076]
[1724786013712,0.17492909,62336.0,62335.0,0.69062579]
[1724786013933,0.17492909,62336.0,62335.0,0.36977879]
[1724786014147,0.17492909,62336.0,62335.0,0.35577879]
[1724786014843,0.17492909,62336.0,62335.0,0.27451076]
[1724786015273,0.17492909,62336.0,62335.0,0.28851076]
[1724786017519,0.17492909,62336.0,62335.0,0.60935776]
[1724786017726,0.17492909,62336.0,62335.0,1.19680476]
[1724786017941,0.17492909,62336.0,62335.0,0.4559261]
[1724786018162,0.17492909,62336.0,62335.0,0.87595776]
[1724786018436,0.17492909,62336.0,62335.0,1.31656877]
[1724786018655,0.17492909,62336.0,62335.0,1.51516877]
[1724786020845,0.07855438,62336.0,62335.0,1.49903496]
[1724786023078,0.15083929,62336.0,62335.0,1.49903496]
[1724786023288,0.12674269,62336.0,62335.0,1.49903496]
[1724786023754,0.07855438,62336.0,62335.0,1.49903496]
[1724786024165,0.12674269,62336.0,62335.0,1.49903496]
[1724786024372,0.07855438,62336.0,62335.0,1.49903496]
[1724786025096,0.07855438,62336.0,62335.0,1.81988196]
[1724786025580,0.07855438,62336.0,62335.0,1.91988196]
[1724786026432,0.07855438,62336.0,62335.0,1.90588196]
[1724786027324,0.07855438,62336.0,62335.0,1.89188196]
[1724786027545,0.07855438,62336.0,62335.0,1.91988196]
[1724786027767,0.07855438,62336.0,62335.0,1.91488196]
[1724786028903,0.07855438,62336.0,62335.0,1.91578616]
[1724786030045,0.07855438,62336.0,62335.0,1.0165545]
[1724786030224,0.12673133,62336.0,62335.0,1.12973916]
[1724786030460,0.12673133,62336.0,62335.0,1.11573916]
[1724786030693,0.12673133,62336.0,62335.0,0.36828115]
[1724786030872,0.12673133,62336.0,62335.0,0.37451186]
[1724786031119,0.12673133,62336.0,62335.0,0.36051186]
[1724786031120,0.27645438,62336.0,62335.0,0.36051186]
[1724786031369,0.27645438,62336.0,62335.0,0.27451186]
[1724786031560,0.27645438,62336.0,62335.0,0.26051186]
[1724786031762,0.27645438,62336.0,62335.0,0.58135886]
[1724786031975,0.27645438,62336.0,62335.0,0.59535886]
[1724786032396,0.27645438,62336.0,62335.0,0.60935886]
[1724786032618,0.27645438,62336.0,62335.0,0.28851186]
[1724786032856,0.27645438,62336.0,62335.0,0.27451186]
[1724786033281,0.27645438,62336.0,62335.0,0.59535886]
[1724786033505,0.27645438,62336.0,62335.0,0.27451186]
[1724786034214,0.27645438,62336.0,62335.0,0.38013395]
[1724786034865,0.27645438,62336.0,62335.0,0.36613395]
[1724786035052,0.27645438,62336.0,62335.0,0.68698095]
[1724786035582,0.27645438,62336.0,62335.0,0.36613395]
[1724786035791,0.27645438,62336.0,62335.0,0.70098095]
[1724786036245,0.07855438,62336.0,62335.0,1.00782795]
[1724786036698,0.07855438,62336.0,62335.0,1.02182795]
[1724786038638,0.19901818,62336.0,62335.0,1.02182795]
[1724786040159,0.19901818,62336.0,62335.0,0.93020586]
[1724786040830,0.19901818,62336.0,62335.0,1.19530586]
[1724786041082,0.07855438,62336.0,62335.0,1.19530586]
[1724786041324,0.15083064,62336.0,62335.0,1.19530586]
[1724786041976,0.15083064,62336.0,62335.0,0.93020586]
[1724786042202,0.15083064,62336.0,62335.0,1.09017131]
[1724786043082,0.15083064,62336.0,62335.0,1.41101831]
[1724786043539,0.15083064,62336.0,62335.0,1.85361831]
[1724786043762,0.07855438,62336.0,62335.0,1.95361831]
[1724786044446,0.07855438,62336.0,62335.0,1.93961831]
[1724786045383,0.07855438,62336.0,62335.0,1.95361831]
[1724786045603,0.07855438,62336.0,62335.0,1.93961831]
[1724786046067,0.07855438,62336.0,62335.0,1.95361831]
[1724786048923,0.07855438,62336.0,62335.0,1.97731909]
[1724786056386,0.07855438,62336.0,62335.0,1.92712475]
[1724786059018,0.07855438,62336.0,62335.0,1.48452475]
[1724786059458,0.07855438,62336.0,62335.0,1.3245593]
[1724786063061,0.07855438,62336.0,62335.0,1.5772635]
[1724786063502,0.07855438,62336.0,62335.0,1.7618635]
[1724786069953,0.06855438,62336.0,62335.0,1.7618635]
[1724786070782,0.06855438,62336.0,62335.0,1.5772635]
[1724786070992,0.06855438,62336.0,62335.0,1.73722895]
[1724786079673,0.4464,62350.0,62342.0,0.2466]
[1724786079900,0.49455607,62350.0,62349.0,0.90111966]
[1724786080149,0.4464,62350.0,62349.0,1.12331143]
[1724786080361,0.1823,62350.0,62349.0,1.12331143]
[1724786081063,0.1823,62350.0,62349.0,1.13731143]
[1724786081285,0.1823,62350.0,62349.0,1.12331143]
[1724786081717,0.1823,62350.0,62349.0,1.13731143]
[1724786082852,0.1823,62350.0,62349.0,1.01511966]
[1724786083058,0.20745155,62350.0,62349.0,1.01511966]
[1724786083576,0.20745155,62350.0,62349.0,1.02911966]
[1724786085149,0.20745155,62350.0,62349.0,0.12718466]
[1724786085408,0.54428565,62350.0,62349.0,0.28757166]
[1724786085632,0.54510346,62350.0,62349.0,0.28757166]
[1724786085840,0.47287355,62350.0,62349.0,0.12718466]
[1724786086260,0.447722,62350.0,62349.0,0.12718466]
[1724786086486,0.447722,62350.0,62349.0,0.028]
[1724786086705,0.59110518,62350.0,62349.0,0.028]
[1724786087157,0.470722,62350.0,62349.0,0.028]
[1724786087359,0.470722,62350.0,62349.0,0.014]
[1724786087567,0.1827,62348.0,62340.0,0.09918466]
[1724786087772,0.4439,62341.0,62340.0,0.01000889]
[1724786087989,0.4439,62341.0,62340.0,0.09918466]
[1724786089056,0.51614407,62341.0,62340.0,0.09918466]
[1724786089509,0.46905625,62341.0,62340.0,0.09918466]
[1724786089703,0.56538168,62341.0,62340.0,0.09918466]
[1724786090135,0.56538168,62341.0,62340.0,0.11318466]
[1724786090549,0.56038168,62341.0,62340.0,0.12218466]
[1724786090819,0.46405625,62341.0,62340.0,0.12218466]
[1724786091023,0.46405625,62341.0,62340.0,0.11318466]
[1724786091243,0.46405625,62341.0,62340.0,0.12718466]
[1724786093365,0.5362886,62341.0,62340.0,0.12718466]
[1724786093776,0.53628861,62341.0,62340.0,0.12718466]
[1724786093996,0.46405625,62341.0,62340.0,0.12718466]
[1724786094878,0.53628694,62341.0,62340.0,0.12718466]
[1724786096106,0.46405625,62341.0,62340.0,0.12718466]
[1724786097225,0.4389,62341.0,62340.0,0.12808886]
[1724786098692,0.4619,62341.0,62340.0,0.12808886]
[1724786099580,0.4619,62341.0,62340.0,0.14328295]
[1724786099928,0.48705612,62341.0,62340.0,0.14328295]
[1724786100564,0.22585612,62341.0,62340.0,0.14328295]
[1724786100909,0.20285612,62341.0,62340.0,0.14328295]
[1724786101122,0.4466,62344.0,62340.0,0.30369295]
[1724786101360,0.023,62343.0,62341.0,0.06474747]
[1724786101743,0.09629122,62342.0,62341.0,0.06474747]
[1724786101944,0.11929122,62342.0,62341.0,0.06474747]
[1724786102730,0.11929122,62342.0,62340.0,0.1613132]
[1724786102939,0.09629122,62342.0,62341.0,0.58040866]
[1724786103828,0.09629122,62342.0,62341.0,0.59440866]
[1724786104025,0.09629122,62342.0,62341.0,1.67624066]
[1724786104209,0.09629122,62342.0,62341.0,1.77624066]
[1724786104530,0.09629122,62342.0,62341.0,1.93620611]
[1724786104972,0.09629122,62342.0,62341.0,1.92220611]
[1724786105185,0.09629122,62342.0,62341.0,1.677056]
[1724786105401,0.09629122,62342.0,62341.0,0.91604]
[1724786105619,0.55109122,62342.0,62341.0,0.014]
[1724786105833,0.4548,62342.0,62341.0,0.014]
[1724786106073,0.4548,62342.0,62341.0,0.028]
[1724786106287,0.4778,62342.0,62341.0,0.028]
[1724786106505,0.2107,62342.0,62341.0,0.05514537]
[1724786106710,0.2107,62342.0,62341.0,0.06914537]
[1724786107168,0.2107,62342.0,62341.0,0.028]
[1724786107169,0.023,62342.0,62341.0,0.028]
[1724786107361,0.023,62342.0,62341.0,0.014]
[1724786107571,0.2055,62342.0,62341.0,0.014]
[1724786107817,0.2055,62342.0,62341.0,0.028]
[1724786108242,0.27769769,62342.0,62341.0,0.028]
[1724786108890,0.27769769,62342.0,62341.0,0.0289042]
[1724786109103,0.27851969,62342.0,62341.0,0.0289042]
[1724786111305,0.3036759,62342.0,62341.0,0.0289042]
[1724786114571,0.3036759,62342.0,62341.0,0.12808886]
[1724786114807,0.49797821,62342.0,62341.0,0.0289042]
[1724786115478,0.61832348,62342.0,62341.0,0.0289042]
[1724786115904,0.49797821,62342.0,62341.0,0.0289042]
[1724786116121,0.472822,62342.0,62341.0,0.0289042]
[1724786116804,0.822822,62342.0,62341.0,0.0289042]
[1724786117700,0.822822,62342.0,62341.0,0.0149042]
[1724786117915,0.822822,62342.0,62341.0,0.0009042]
[1724786118785,0.822822,62342.0,62341.0,0.0059042]
[1724786119019,0.822822,62342.0,62341.0,0.0159042]
[1724786119252,0.84798202,62342.0,62341.0,0.0109042]
[1724786119476,0.84798202,62342.0,62341.0,0.0119042]
[1724786119477,1.01025967,62342.0,62341.0,0.0119042]
[1724786119700,0.85298202,62342.0,62341.0,0.0019042]
[1724786120865,0.85698202,62342.0,62341.0,0.0009042]
[1724786121096,0.85798202,62342.0,62341.0,0.0009042]
[1724786121315,0.85698202,62342.0,62341.0,0.0009042]
[1724786121533,1.01915351,62342.0,62341.0,0.0009042]
[1724786121777,1.02115351,62342.0,62341.0,0.0009042]
[1724786122207,1.01715351,62342.0,62341.0,0.0009042]
[1724786122436,0.85898202,62342.0,62341.0,0.0009042]
[1724786125986,1.02115351,62342.0,62341.0,0.0009042]
[1724786126197,0.99599349,62342.0,62341.0,0.0009042]
[1724786126408,1.09599349,62342.0,62341.0,0.0009042]
[1724786126649,0.933822,62342.0,62341.0,0.0009042]
[1724786128007,0.95898514,62342.0,62341.0,0.0009042]
[1724786131151,0.505,62336.0,62335.0,0.0009042]
[1724786131367,1.30884121,62336.0,62335.0,0.0009042]
[1724786131833,1.0607,62336.0,62335.0,0.0009042]
[1724786132283,0.5557,62336.0,62335.0,0.0019042]
[1724786132537,0.5557,62336.0,62335.0,0.0009042]
[1724786133002,0.5557,62336.0,62335.0,0.0029042]
[1724786133933,0.5857,62336.0,62335.0,0.0039042]
[1724786134392,0.5857,62336.0,62335.0,0.0019042]
[1724786134610,0.5787,62336.0,62335.0,0.0009042]
[1724786135036,0.5817,62336.0,62335.0,0.0009042]
[1724786135671,0.5517,62336.0,62335.0,0.0009042]
[1724786139524,0.026,62336.0,62335.0,0.0009042]
[1724786139728,0.026,62336.0,62335.0,0.4498042]
[1724786140774,0.024,62336.0,62335.0,0.4498042]
[1724786140989,0.003,62336.0,62335.0,0.4498042]
[1724786141206,0.025,62336.0,62335.0,0.4498042]
[1724786141418,0.026,62336.0,62335.0,0.4498042]
[1724786141620,0.026,62336.0,62335.0,0.4508042]
[1724786141827,0.024,62336.0,62335.0,0.4498042]
[1724786142036,0.023,62336.0,62335.0,0.4498042]
[1724786142214,0.025,62336.0,62335.0,0.4688042]
[1724786142431,0.025,62336.0,62335.0,0.51378462]
[1724786142672,0.025,62336.0,62335.0,0.4688042]
[1724786143096,0.002,62336.0,62335.0,0.4688042]
[1724786143527,0.002,62336.0,62335.0,0.9500742]
[1724786144412,0.002,62336.0,62335.0,1.5917682]
[1724786145294,0.001,62336.0,62335.0,1.5817682]
[1724786145513,0.02598514,62342.0,62338.0,0.32083]
[1724786145731,0.02598514,62342.0,62341.0,0.415608]
[1724786145964,0.02598514,62342.0,62341.0,0.2562]
[1724786146425,0.02598514,62342.0,62341.0,0.2552]
[1724786146426,0.04898514,62342.0,62341.0,0.2552]
[1724786146646,0.04898514,62342.0,62339.0,0.1927]
[1724786146647,0.04898514,62342.0,62336.0,0.1927]
[1724786146868,0.023,62341.0,62336.0,0.1927]
[1724786147080,0.07096994,62341.0,62336.0,0.1927]
[1724786147936,0.07096994,62341.0,62336.0,0.24350342]
[1724786148149,0.07096994,62341.0,62336.0,0.22950342]
[1724786148592,0.07096994,62341.0,62336.0,0.24350342]
[1724786149435,0.07096994,62341.0,62337.0,0.2563]
[1724786150577,0.04796994,62340.0,62337.0,0.2703]
[1724786150801,0.023,62339.0,62337.0,0.2703]
[1724786151490,0.07096994,62339.0,62337.0,0.2563]
[1724786151705,0.07096994,62339.0,62337.0,0.2843]
[1724786151926,0.07096994,62339.0,62337.0,0.2703]
[1724786152143,0.07096994,62339.0,62337.0,0.2563]
[1724786152360,0.07096994,62339.0,62337.0,0.2843]
[1724786155920,0.04796994,62338.0,62337.0,0.465]
[1724786156101,0.02598514,62342.0,62338.0,0.2676]
[1724786156360,0.02598514,62342.0,62340.0,0.2661]
[1724786156578,0.02598514,62342.0,62341.0,0.426508]
[1724786156782,0.02598514,62342.0,62341.0,0.614608]
[1724786158463,0.02598514,62342.0,62341.0,0.628608]
[1724786158671,0.02598514,62342.0,62341.0,0.642608]
[1724786160396,0.02598514,62342.0,62341.0,0.4822]
[1724786160609,0.04898514,62342.0,62341.0,0.4822]
[1724786166087,0.04898514,62342.0,62341.0,1.0918516]
[1724786166088,0.02598514,62342.0,62341.0,1.0918516]
[1724786166721,0.02598514,62342.0,62341.0,0.963424]
[1724786167132,0.02598514,62342.0,62341.0,0.642608]
[1724786167391,0.02598514,62342.0,62341.0,0.963424]
[1724786167787,0.02598514,62342.0,62341.0,0.4822]
[1724786167993,0.02598514,62342.0,62341.0,0.642608]
[1724786168831,0.02598514,62342.0,62341.0,0.4822]
[1724786169071,0.02598514,62342.0,62341.0,0.642608]
[1724786169920,0.02598514,62342.0,62341.0,0.4822]
[1724786170141,0.02598514,62342.0,62341.0,1.4126671]
[1724786170570,0.02598514,62342.0,62341.0,1.0918511]
[1724786170995,0.02598514,62342.0,62341.0,0.949424]
[1724786171243,0.02598514,62342.0,62341.0,0.4682]
[1724786171463,0.04898514,62342.0,62341.0,0.4822]
[1724786171914,0.52068514,62342.0,62341.0,0.014]
[1724786172133,0.59271928,62342.0,62335.0,0.0009042]
[1724786172345,0.04800462,62340.0,62335.0,0.0009042]
[1724786172568,0.023,62341.0,62335.0,0.0009042]
[1724786172569,0.04800462,62338.0,62335.0,0.0009042]
[1724786172772,0.04800462,62337.0,62335.0,0.0009042]
[1724786172992,0.023,62336.0,62335.0,0.0009042]
[1724786173421,0.023,62337.0,62335.0,0.0009042]
[1724786173938,0.04801754,62336.0,62335.0,0.0149042]
[1724786174182,0.023,62336.0,62335.0,0.0009042]
[1724786174419,0.09503414,62336.0,62335.0,0.0149042]
[1724786174659,0.09503414,62336.0,62335.0,0.0009042]
[1724786174875,0.44503414,62336.0,62335.0,0.0009042]
[1724786175135,0.74574553,62336.0,62335.0,0.0149042]
[1724786175366,0.6497,62336.0,62335.0,0.0149042]
[1724786175589,0.8447,62336.0,62335.0,0.0149042]
[1724786175846,0.98876829,62336.0,62335.0,0.0289042]
[1724786176076,0.8447,62336.0,62335.0,0.0289042]
[1724786176547,0.8447,62336.0,62335.0,0.0149042]
[1724786176786,0.8447,62336.0,62335.0,0.0279042]
[1724786176990,0.8447,62336.0,62335.0,0.0009042]
[1724786177200,0.8457,62336.0,62335.0,0.0009042]
[1724786177663,0.8447,62336.0,62335.0,0.0009042]
[1724786177874,0.8477,62336.0,62335.0,0.0039042]
[1724786178095,0.8447,62336.0,62335.0,0.0039042]
[1724786178304,0.8447,62336.0,62335.0,0.0009042]
[1724786178535,0.8447,62336.0,62335.0,0.0039042]
[1724786179846,0.8447,62336.0,62335.0,0.0029042]
[1724786180066,0.8447,62336.0,62335.0,0.0009042]
[1724786180553,0.8447,62336.0,62335.0,0.0019042]
[1724786180994,0.8447,62336.0,62335.0,0.0009042]
[1724786181212,0.8457,62336.0,62335.0,0.0009042]
[1724786184096,0.8507,62336.0,62335.0,0.0009042]
[1724786185583,0.9507,62336.0,62335.0,0.0009042]
[1724786189470,0.9457,62336.0,62335.0,0.0009042]
[1724786197067,0.474,62336.0,62335.0,0.0009042]
[1724786197280,0.61800231,62336.0,62335.0,0.0009042]
[1724786198352,0.61799431,62336.0,62335.0,0.0009042]
[1724786198781,0.61798891,62336.0,62335.0,0.0009042]
[1724786199422,0.474,62336.0,62335.0,0.0009042]
[1724786200972,0.469,62336.0,62335.0,0.0009042]
[1724786202101,0.474,62336.0,62335.0,0.0009042]
[1724786202327,0.9402,62336.0,62335.0,0.0009042]
[1724786203409,0.941022,62336.0,62335.0,0.0009042]
[1724786206716,1.110322,62336.0,62335.0,0.0009042]
[1724786208050,1.112322,62336.0,62335.0,0.0019042]
[1724786208710,0.355,62323.0,62322.0,0.0009031]
[1724786208936,0.8034,62323.0,62322.0,0.0009031]
[1724786209588,0.97259465,62323.0,62322.0,0.0009031]
[1724786210076,0.92856802,62323.0,62322.0,0.0009031]
[1724786210283,1.09062434,62323.0,62322.0,0.0009031]
[1724786210503,0.95219243,62323.0,62322.0,0.0069031]
[1724786210731,0.95219243,62323.0,62322.0,0.0009031]
[1724786210949,0.97519243,62323.0,62322.0,0.0009031]
[1724786211166,0.97919243,62323.0,62322.0,0.0009031]
[1724786211392,0.98019243,62323.0,62322.0,0.0079031]
[1724786211871,0.97919243,62323.0,62322.0,0.0009031]
[1724786212605,0.98519243,62323.0,62322.0,0.0019031]
[1724786212835,0.99619243,62323.0,62322.0,0.0029031]
[1724786213054,0.97519243,62323.0,62322.0,0.0009031]
[1724786213265,0.97519243,62323.0,62322.0,0.0019031]
[1724786213266,0.98619243,62323.0,62322.0,0.0019031]
[1724786214391,0.99619243,62323.0,62322.0,0.0029031]
[1724786215549,1.15825727,62323.0,62322.0,0.0029031]
[1724786216443,0.99619243,62323.0,62322.0,0.0029031]
[1724786220103,1.09552406,62323.0,62322.0,0.0029031]
[1724786222231,0.86663163,62317.0,62316.0,0.0009042]
[1724786222461,1.32613163,62317.0,62316.0,0.0009042]
[1724786223407,1.33613163,62317.0,62316.0,0.0009042]
[1724786223903,1.2458,62317.0,62316.0,0.0009042]
[1724786224160,1.49423988,62317.0,62316.0,0.0009042]
[1724786224407,1.34793988,62317.0,62316.0,0.0009042]
[1724786224659,0.88360181,62317.0,62316.0,0.0009042]
[1724786224894,0.647,62317.0,62316.0,0.0009042]
[1724786227271,0.9093,62317.0,62316.0,0.0009042]
[1724786227513,1.2607,62317.0,62316.0,0.0009042]
[1724786227797,1.49726089,62317.0,62316.0,0.0009042]
[1724786228256,1.26050688,62317.0,62316.0,0.0009042]
[1724786228945,1.74545288,62317.0,62316.0,0.0009042]
[1724786230408,0.60324676,62305.0,62304.0,0.0009042]
[1724786231058,0.72842261,62305.0,62304.0,0.0009042]
[1724786231808,0.48598273,62305.0,62304.0,0.0009042]
[1724786232033,0.48598273,62305.0,62304.0,0.4448042]
[1724786232034,0.48117585,62305.0,62304.0,0.4448042]
[1724786232254,0.48598273,62305.0,62304.0,0.4398042]
[1724786232483,0.50898273,62305.0,62304.0,0.4398042]
[1724786233400,0.51698273,62305.0,62304.0,0.4398042]
[1724786233857,0.50898273,62305.0,62304.0,0.4398042]
[1724786234095,0.51498273,62305.0,62304.0,0.4398042]
[1724786236771,0.51498273,62305.0,62304.0,0.2523042]
[1724786237015,0.00480688,62304.0,62300.0,0.25874]
[1724786237242,0.14406381,62302.0,62300.0,0.25874]
[1724786237718,0.023,62301.0,62300.0,0.25874]
[1724786240049,0.026,62301.0,62300.0,0.25874]
[1724786240992,0.025,62301.0,62300.0,0.25874]
[1724786241695,0.16706381,62301.0,62300.0,0.25874]
[1724786241963,0.16806381,62301.0,62300.0,0.25874]
[1724786242466,0.024,62301.0,62300.0,0.25874]
[1724786242660,0.16806381,62301.0,62300.0,0.25874]
[1724786243556,0.14506381,62301.0,62300.0,0.44694]
[1724786243791,0.09706756,62301.0,62300.0,0.44694]
[1724786244023,0.001,62301.0,62300.0,0.44694]
[1724786244556,0.12108894,62301.0,62300.0,0.44694]
[1724786244765,0.14406381,62304.0,62301.0,0.2697]
[1724786245020,0.14406381,62303.0,62301.0,0.2687]
[1724786245235,0.14406381,62302.0,62301.0,0.2687]
[1724786245459,0.023,62303.0,62301.0,0.2687]
[1724786245943,0.00580688,62301.0,62300.0,4e-05]
[1724786246410,0.00480688,62301.0,62300.0,4e-05]
[1724786246651,0.02780688,62301.0,62300.0,4e-05]
[1724786248457,0.023,62301.0,62300.0,0.45554]
[1724786248897,0.123,62301.0,62300.0,0.45554]
[1724786249110,0.29921557,62301.0,62300.0,0.26504]
[1724786249322,0.137,62301.0,62300.0,0.26504]
[1724786249535,0.123,62301.0,62300.0,0.26504]
[1724786249833,0.129,62301.0,62300.0,0.26504]
[1724786249989,0.025,62301.0,62300.0,0.26504]
[1724786250208,0.002,62301.0,62300.0,0.2659442]
[1724786250652,0.00680688,62301.0,62300.0,0.0009442]
[1724786250895,0.19870688,62301.0,62300.0,0.0009442]
[1724786251111,0.32170688,62301.0,62300.0,0.0009442]
[1724786251548,0.32470688,62301.0,62300.0,0.0009442]
[1724786251749,0.32170688,62301.0,62300.0,0.0009442]
[1724786251952,0.32570688,62301.0,62300.0,0.0009442]
[1724786252186,0.32770688,62301.0,62300.0,0.0009442]
[1724786252396,0.32370688,62301.0,62300.0,0.0009442]
[1724786252610,0.32670688,62301.0,62300.0,0.0009442]
[1724786253046,0.33170688,62301.0,62300.0,0.0009442]
[1724786253270,0.35539169,62301.0,62300.0,0.0009442]
[1724786253509,0.35039169,62301.0,62300.0,0.0009442]
[1724786253727,0.35739169,62301.0,62300.0,0.0009442]
[1724786255082,0.35239169,62301.0,62300.0,0.0009442]
[1724786255727,0.34539169,62301.0,62300.0,0.0009442]
[1724786255947,0.35239169,62301.0,62300.0,0.0009442]
[1724786256136,0.35339169,62301.0,62300.0,0.0009442]
[1724786256390,0.36139169,62301.0,62300.0,0.0009442]
[1724786260015,0.16749169,62301.0,62300.0,0.0009442]
[1724786260189,0.06749169,62301.0,62300.0,0.0009442]
[1724786261087,0.06749169,62301.0,62300.0,0.2669442]
[1724786261404,0.06268481,62301.0,62300.0,0.4620442]
[1724786261561,0.016,62301.0,62300.0,0.4620442]
[1724786262453,0.008,62301.0,62300.0,0.4620442]
[1724786262654,0.1,62304.0,62301.0,0.266]
[1724786262863,0.023,62303.0,62301.0,0.258]
[1724786263069,0.023,62303.0,62301.0,0.256]
[1724786263963,0.00480688,62302.0,62301.0,0.256]
[1724786264377,0.02780688,62302.0,62301.0,0.256]
[1724786264791,0.12780688,62302.0,62301.0,0.256]
[1724786265210,0.13180688,62302.0,62301.0,0.256]
[1724786265618,0.36893754,62302.0,62301.0,0.256]
[1724786266018,0.37193754,62302.0,62301.0,0.256]
[1724786267431,0.13480688,62302.0,62301.0,0.256]
[1724786267579,0.03480688,62302.0,62301.0,0.256]
[1724786267777,0.27207241,62302.0,62301.0,0.256]
[1724786267984,0.13480688,62302.0,62301.0,0.256]
[1724786271005,0.13480688,62302.0,62301.0,0.269]
[1724786271210,0.37207241,62302.0,62301.0,0.013]
[1724786271413,0.35480688,62296.0,62295.0,0.000902]
[1724786271644,0.35,62279.0,62278.0,0.0009031]
[1724786272052,0.37518498,62279.0,62278.0,0.0009031]
[1724786272692,0.37999186,62279.0,62278.0,0.0009031]